Cogmind - Beta 13 @@@ ROGUE MODE // 2024.04.25 @ 14:15:43 Player: Wesmed Result: Destroyed by D-53 Grenadier with Mini Grenade Launcher Performance ------------- Evolutions (0) 0 Regions Visited (4) 800 Robots Destroyed (11) 55 Value Destroyed (197) 197 Prototype IDs (2) 40 Alien Tech Used (0) 0 Bonus (21) 21 TOTAL SCORE: 1113 Bonus ------- Follower Combat Kills 21 Cogmind --------- Core Integrity 0/250 Matter 262/300 Energy 100/100 System Corruption 0% Temperature Cool (0) Movement Rolling (140) Ox4 Location -9/Mines Parts ------- > --- POWER (1) -------- (None) > --- PROPULSION (2) --- Wheel > --- UTILITY (2) ------ High-capacity Storage Unit Improved Terrain Scanner > --- WEAPON (2) ------- Assault Rifle Light Assault Rifle > --- INVENTORY (20) --- Ion Engine Light Ion Engine Wheel Wheel Improved Heat Sink Large Battery (200) Large Matter Pod (120) Terrain Scan Processor Thief Drone Bay Mini Grenade Launcher Mining Claw Peak State ------------ > --- POWER ------------ Light Nuclear Core > --- PROPULSION ------- Wheel Wheel > --- UTILITY ---------- High-capacity Storage Unit Improved Terrain Scanner > --- WEAPON ----------- Assault Rifle Light Assault Rifle > --- INVENTORY -------- Ion Engine Light Ion Engine Wheel Wheel Improved Heat Sink Large Battery Large Matter Pod Terrain Scan Processor Thief Drone Bay Mini Grenade Launcher Mining Claw [Rating: 13] Favorites ----------- Power Light Nuclear Core Engine Light Ion Engine Power Core Light Nuclear Core Propulsion Wheel Wheel Wheel Utility Improved Terrain Scanner Device Improved Terrain Scanner Storage Small Storage Unit Weapon Assault Rifle Energy Gun Medium Laser Ballistic Gun Assault Rifle Special Weapon Mining Laser Slashing Weapon Mining Claw Build | -11 -10 -10 -10 -9 ------- Run | Yrd Mat Min Exi Min Slots Evolved . | . . . . . Power . | . . . . . Propulsion . | . . . . . Utility . | . . . . . Weapon . | . . . . . Parts Attached 17 | 7 1 6 2 1 Power 2 | . . 2 . . Engine 1 | . . 1 . . Core 1 | . . 1 . . Reactor . | . . . . . Propulsion 4 | 3 . 1 . . Treads . | . . . . . Leg . | . . . . . Wheel 4 | 3 . 1 . . Hover . | . . . . . Flight . | . . . . . Utility 4 | 2 . . 2 . Device 1 | 1 . . . . Storage 3 | 1 . . 2 . Processor . | . . . . . Hackware . | . . . . . Protection . | . . . . . Artifact . | . . . . . Weapon 7 | 2 1 3 . 1 Energy Gun 1 | 1 . . . . Energy Cannon . | . . . . . Ballistic Gun 4 | 1 . 2 . 1 Ballistic Cannon . | . . . . . Launcher . | . . . . . Special Weapon 1 | . 1 . . . Impact Weapon . | . . . . . Slashing Weapon 1 | . . 1 . . Piercing Weapon . | . . . . . Special Melee Weapon . | . . . . . Unidentified Prototypes . | . . . . . Parts Lost 4 | . . 2 . 2 Power 2 | . . 1 . 1 Propulsion 2 | . . 1 . 1 Utility . | . . . . . Weapon . | . . . . . Highest Loss Streak 2 | . . 2 . 2 To Critical Strikes . | . . . . . Average Slot Usage (%) 97 | . 85 96 100 92 Engine 4 | . . 8 . . Core 7 | . . 3 14 9 Wheel 27 | . 28 27 28 25 Device 14 | . 14 14 14 14 Storage 14 | . 14 14 14 14 Energy Gun 1 | . 14 2 . . Ballistic Gun 21 | . 9 25 14 28 Slashing Weapon 4 | . . . 14 . Naked Turns . | . . . . . Heaviest Build 50 | 10 10 15 50 49 Greatest Support 20 | 20 20 20 20 20 Greatest Overweight (x) 2 | . . 1 2 2 Average Overweight (x) . | . . . . 2 Largest Inventory Capacity 20 | 8 8 8 20 20 Average Capacity 9 | 7 8 8 11 20 Most Carried 11 | 8 8 8 10 11 Average Carried 8 | 3 7 7 9 10 Final Capacity 20 | 8 8 8 20 20 Final Carried 11 | 8 8 8 10 11 Class Distribution -------------------- 53% | Mutant 46% | Scavenger-Mutant Dominant Class ---------------- Mutant | -10/Materials Scavenger-Mutant | -10/Mines Mutant | -10/Exiles Scavenger-Mutant | -9/Mines Resources | -11 -10 -10 -10 -9 ----------- Run | Yrd Mat Min Exi Min Matter Collected 427 | 234 . 151 30 12 Remotely . | . . . . . Salvage Created 237 | 50 . 178 . 9 Parts 25 | 12 . 13 . . Haulers Intercepted . | . . . . . Recyclers Shooed . | . . . . . Parts Field Recycled . | . . . . . Retrieved Matter . | . . . . . Parts Self-Destructed . | . . . . . Prevented . | . . . . . Kills | -11 -10 -10 -10 -9 ------- Run | Yrd Mat Min Exi Min Combat Hostiles Destroyed 7 | . . 5 . 2 Guns 7 | . . 5 . 2 Classes Destroyed 6 | 1 . 3 . 2 Builder 1 | . . 1 . . Tunneler 4 | 4 . . . . Swarmer 3 | . . 3 . . Grunt 2 | . . 2 . . Demolisher 1 | . . . . 1 Assembled 1 | . . . . 1 Best Kill Streak 3 | 3 . 3 . 1 Combat Bots Only 3 | . . 3 . 1 Max Kills in Single Turn 1 | 1 . 1 . 1 Gunslinging . | . . . . . Exploded . | . . . . . Melee . | . . . . . Uniques/NPCs Destroyed . | . . . . . Combat | -11 -10 -10 -10 -9 -------- Run | Yrd Mat Min Exi Min Hostile Shots Fired 47 | . 4 28 . 15 Missed 14 | . 2 10 . 2 Damage Taken 589 | . 16 183 . 390 Core 268 | . . 45 . 223 Absorbed by Shields . | . . . . . Core Remaining (%) 100 | 100 . . . . Volleys Fired 34 | 5 2 17 . 10 Largest 2 | 2 1 2 . 2 Hottest 100 | 70 100 70 . 40 Shots Fired 66 | 10 2 34 . 20 Gun 64 | 10 . 34 . 20 Cannon . | . . . . . Launcher . | . . . . . Special 2 | . 2 . . . Kinetic 51 | 5 . 26 . 20 Thermal 15 | 5 2 8 . . Explosive . | . . . . . Electromagnetic . | . . . . . Robot Hit Streak 5 | 5 . 5 . 3 Robot Miss Streak 5 | 1 . 5 . 3 Penetration Max . | . . . . . Secondary Targets 2 | . . 1 . 1 Max Gunslinging Chain 1 | . . 1 . 1 Shots Hit Robots 33 | 7 . 18 . 8 Core Hits 19 | 4 . 10 . 5 Critical Kills 2 | . . 1 . 1 Critical Parts Destroyed . | . . . . . Critical Strikes 2 | . . 1 . 1 Destroy 2 | . . 1 . 1 Melee Attacks 1 | . . 1 . . Impact . | . . . . . Slashing 1 | . . 1 . . Piercing . | . . . . . Sneak Attacks . | . . . . . Combat Hostiles . | . . . . . Follow-up Attacks . | . . . . . Damage Inflicted 356 | 96 . 190 . 70 Guns 356 | 96 . 190 . 70 Cannons . | . . . . . Explosions . | . . . . . Melee . | . . . . . Ramming . | . . . . . Kinetic 293 | 59 . 164 . 70 Thermal 63 | 37 . 26 . . Explosive . | . . . . . Electromagnetic . | . . . . . Impact . | . . . . . Slashing . | . . . . . Piercing . | . . . . . Highest Corruption . | . . . . . Average Corruption . | . . . . . Corruption Purged . | . . . . . Corruption Blocked . | . . . . . Overload Shots . | . . . . . Overflow Damage . | . . . . . Projectiles . | . . . . . Explosions . | . . . . . Melee . | . . . . . Knockbacks . | . . . . . Impact . | . . . . . Kinetic . | . . . . . Secondary . | . . . . . Self-Inflicted Damage . | . . . . . Shots . | . . . . . Rammed . | . . . . . Targets Rammed . | . . . . . Kicked . | . . . . . Crushed . | . . . . . Highest Temperature 9 | . . 9 . 4 Average Temperature 4 | . . 6 . 3 Received Heat Transfer 48 | . . 48 . . Siege Activations . | . . . . . Robots Corrupted . | . . . . . Combat Hostiles . | . . . . . Parts Fried . | . . . . . Impact Corruptions . | . . . . . Robots Melted . | . . . . . Combat Hostiles . | . . . . . Parts Melted . | . . . . . Heat Transferred 185 | 111 . 74 . . Parts Sabotaged . | . . . . . Parts Stolen . | . . . . . Parts Stripped . | . . . . . Power Chain Reactions . | . . . . . Alert | -11 -10 -10 -10 -9 ------- Run | Yrd Mat Min Exi Min Peak Influence 84 | 20 24 84 . 46 Initial 13 | . 13 9 . . Average 36 | 8 18 43 . 9 Maximum Alert Level . | . . . . . Low Security (%) 100 | 100 100 100 . 100 Level 1 . | . . . . . Level 2 . | . . . . . Level 3 . | . . . . . Level 4 . | . . . . . Level 5 . | . . . . . High Security . | . . . . . Max Security . | . . . . . Squads Dispatched . | . . . . . Investigation . | . . . . . Extermination . | . . . . . Reinforcement . | . . . . . Assault . | . . . . . Garrison . | . . . . . Intercept . | . . . . . Searches Triggered . | . . . . . Construction Impeded . | . . . . . Haulers Reinforced . | . . . . . Active Scanning Responses . | . . . . . Cargo Convoy Interrupts . | . . . . . Stealth | -11 -10 -10 -10 -9 --------- Run | Yrd Mat Min Exi Min Distress Signals . | . . . . . Communications Jammed . | . . . . . Distress Signals . | . . . . . Times Spotted 23 | . 3 5 . 15 Peak Tracking Total 10 | . 2 3 . 10 Tactical Retreats 2 | . . . . 2 Traps | -11 -10 -10 -10 -9 ------- Run | Yrd Mat Min Exi Min Traps Triggered . | . . . . . Indirectly . | . . . . . Trap Hack Attempts . | . . . . . Triggered . | . . . . . Disarmed . | . . . . . Reprogrammed . | . . . . . Reused . | . . . . . Traps Extracted . | . . . . . Installed . | . . . . . Triggered . | . . . . . Machines | -11 -10 -10 -10 -9 ---------- Run | Yrd Mat Min Exi Min Machines Disabled . | . . . . . Max in Single Turn . | . . . . . Machines Repaired . | . . . . . Machines Dismantled . | . . . . . Machines Sabotaged . | . . . . . Overloaded Fab Kills . | . . . . . Hacking | -11 -10 -10 -10 -9 --------- Run | Yrd Mat Min Exi Min Machines Accessed 6 | . 1 1 4 . Terminals 1 | . 1 . . . Fabricators . | . . . . . Repair Stations . | . . . . . Recycling Units . | . . . . . Scanalyzers . | . . . . . Garrison Access . | . . . . . Total Hacks 7 | . 2 1 4 . Successful 7 | . 2 1 4 . Failed . | . . . . . Catastrophic . | . . . . . Database Lockouts . | . . . . . Manual . | . . . . . Terminals 2 | . 2 . . . Fabricators . | . . . . . Repair Stations . | . . . . . Recycling Units . | . . . . . Scanalyzers . | . . . . . Garrison Access . | . . . . . Terminal Hacks 7 | . 2 1 4 . Record 4 | . . . 4 . Robot Analysis 1 | . 1 . . . Prototype ID Bank 1 | . 1 . . . Open Door 1 | . . 1 . . Fabricator Hacks . | . . . . . Repair Station Hacks . | . . . . . Recycling Unit Hacks . | . . . . . Scanalyzer . | . . . . . Garrison Access Hacks . | . . . . . Unauthorized Hacks . | . . . . . Terminals . | . . . . . Fabricators . | . . . . . Repair Stations . | . . . . . Recycling Units . | . . . . . Scanalyzers . | . . . . . Garrison Access . | . . . . . Data Cores Recovered . | . . . . . Used . | . . . . . Hacking Detections . | . . . . . Full Trace Events . | . . . . . Feedback Events . | . . . . . Feedback Blocked . | . . . . . Robot Schematics Acquired . | . . . . . Robots Built . | . . . . . Authchips . | . . . . . Time . | . . . . . Total Robot Build Rating . | . . . . . Part Schematics Acquired . | . . . . . Parts Built . | . . . . . Authchips . | . . . . . Time . | . . . . . Total Part Build Rating . | . . . . . Parts Repaired . | . . . . . Time . | . . . . . Parts Recycled . | . . . . . Recycled Matter . | . . . . . Retrieved Matter . | . . . . . Retrieved Components . | . . . . . Parts Scanalyzed . | . . . . . Part Schematics Acquired . | . . . . . Parts Damaged . | . . . . . Bothacking | -11 -10 -10 -10 -9 ------------ Run | Yrd Mat Min Exi Min Used RIF Installer . | . . . . . Robots Hacked . | . . . . . Non-combat . | . . . . . Combat . | . . . . . Robot Hacks Applied . | . . . . . Relay Couplers Released . | . . . . . Fabnet Peak Effective % . | . . . . . Robots Rewired . | . . . . . Allies Hacked . | . . . . . Hacks Repelled . | . . . . . Allies | -11 -10 -10 -10 -9 -------- Run | Yrd Mat Min Exi Min Total Allies 3 | . . 3 . . Largest Group 3 | . . 3 3 3 Highest-Rated Group 40 | . . 40 40 40 Highest-Rated Ally 16 | . . 16 16 16 Total Orders . | . . . . . Ally Attacks 17 | . . 1 . 16 Total Damage 151 | . . 15 . 136 Kills 3 | . . 1 . 2 Allies Corrupted . | . . . . . Allies Melted . | . . . . . Intel | -11 -10 -10 -10 -9 ------- Run | Yrd Mat Min Exi Min Robot Analysis Total 1 | . 1 . . . Derelict Logs Recovered 1 | . . 1 . . Drone Launches . | . . . . . Drone Recoveries . | . . . . . Exploration | -11 -10 -10 -10 -9 ------------- Run | Yrd Mat Min Exi Min Turns Passed 1432 | 113 30 768 458 63 Spaces Moved 1276 | 101 25 582 538 30 Core 19 | 19 . . . . Treads . | . . . . . Legs . | . . . . . Wheels 1257 | 82 25 582 538 30 Hover . | . . . . . Flight . | . . . . . Fastest Speed 50 | 50 80 80 80 110 Average Speed 82 | 74 80 80 84 110 Slowest Speed 110 | 80 80 95 110 110 Overloaded Moves . | . . . . . Propulsion Burnouts . | . . . . . Robots Hopped . | . . . . . Cave-ins Triggered . | . . . . . Exploration Rate (%) 40 | 5 5 91 92 10 Regions Visited 4 Branch Regions 3 Pre-discovered Areas 2 | . . 2 . . Known Exits Taken . | . . . . . Unknown Exits Taken 4 | 1 1 1 1 . Scrap Searched 2 | . . 1 . 1 Spaces Dug 2 | . 2 . . . Terrain Destroyed 2 | . 2 . . . Melee . | . . . . . Projectile 2 | . 2 . . . AOE . | . . . . . Terrain Rammed . | . . . . . Walls Destroyed . | . . . . . Machines Disabled . | . . . . . Actions | -11 -10 -10 -10 -9 --------- Run | Yrd Mat Min Exi Min Total 1588 | 126 29 846 543 44 Wait 237 | 4 . 233 . . Move 1272 | 100 24 581 537 30 Hop . | . . . . . Pick Up 18 | 10 1 4 2 1 Fast Attach 7 | 3 . 3 . 1 Attach 5 | 3 1 1 . . Detach 1 | . . . . 1 Swap 5 | 1 . 2 2 . Drop 8 | . 1 4 2 1 Fire 34 | 5 2 17 . 10 Melee 1 | . . 1 . . Ram . | . . . . . Kick . | . . . . . Crush . | . . . . . Escape Stasis . | . . . . . Rewire . | . . . . . Trap . | . . . . . Miscellaneous . | . . . . . Route ------- -11/Scrapyard -10/Materials -10/Mines (discovered 2 exits: [*Mat] / *Exi) -10/Exiles (discovered 2 exits: [*Min x2]) -9/Mines History --------- Turn | Location | Event 11 | -11/Scrapyard | Discovered new exit (range 15) 114 | -11/Scrapyard | Entered Materials 123 | -10/Materials | Discovered new exit (range 6) 144 | -10/Materials | Entered Mines 147 | -10/Mines | Learned location of Zion (-6) 157 | -10/Mines | Found a hidden stash of uninstalled traps 377 | -10/Mines | Discovered new exit (range 13) 555 | -10/Mines | Learned location of Storage (-7) 563 | -10/Mines | Build established: Scavenger-Mutant 670 | -10/Mines | Found the Drone Emporium 674 | -10/Mines | Found Prototype Device 862 | -10/Mines | Assisted by bots powering up and referring to "LRC-V3" 908 | -10/Mines | Discovered new exit (range 2) 912 | -10/Mines | Entered Exiles 912 | -10/Exiles | Found Exiles lab abandoned 912 | -10/Exiles | Accompanied by 3 allies 1122 | -10/Exiles | Discovered new exit (range 11) 1204 | -10/Exiles | Build established: Mutant 1350 | -10/Exiles | Discovered new exit (range 15) 1370 | -10/Exiles | Entered Mines 1370 | -9/Mines | Accompanied by 3 allies 1371 | -9/Mines | Assembled infested the area 1376 | -9/Mines | Assisted by a Guerilla fighting off Assembled 1425 | -9/Mines | Lost 4 allies 1428 | -9/Mines | Core integrity fell below 50% 1430 | -9/Mines | Core integrity fell below 20% 1433 | -9/Mines | Destroyed by D-53 Grenadier with Mini Grenade Launcher Last Messages --------------- 01405_ Searching scrap... 01405_ Found Mni. Grenade Launcher. 01405_ Found 12 Matter. 01406_ Acquired 12 matter. 01407_ Acquired Mni. Grenade Launcher. 01413_ Lgt. Nuclear Core destroyed. 01416_ C-30 ARC bursts open, deploying its payload. 01416_ D-53 Grenadier unfolds itself. 01417_ The unstable cave ceiling collapses. 01417_ as-91882 destroyed. 01419_ as-03682 destroyed. 01421_ as-16548 destroyed. 01423_ The unstable cave ceiling collapses. 01427_ Wheel destroyed. 01428_ The unstable cave ceiling collapses. 01429_ D-53 Grenadier suffers critical hit (Destroy). 01429_ D-53 Grenadier destroyed. 01429_ Switching to secondary target: D-53 Grenadier. 01433_ The unstable cave ceiling collapses. 01433_ K-01 Serf collects debris. Map ----- +----------------------------------------------------+ | ?????????????????????????????????????????? | | ?????????????????????????????????????????? | | ?????????????????????????????????????????? | | ?????????????????????????????????????????? | | ?????????????????????????????????????????? | | ?????????????????????????????????????????? | | ??????????????????????????????????????#??? | | ?????????????????????????????????????#???# | | ?????????????????????????????????????#???? | | ??????????????????????????#??#???????????? | | ??????????????????????????????????????#?#? | | ????????????????????????????#????????????? | | ?????????????????????????????????????????? | | ?????????????????????????????????????????? | | ?????????????????????????????????????####? | | ???????????????????#????#????????????# ## | | ???????????????????#?????????#???????# !# | | ???????????????????????????? #########%=%= | | ??????????????????????????# % [=% | | ????????????????????????# #########[%" | | ??????????????###?##??# # #?????#### | | ?????????????## # ### #????????? | | ???#????????## #????????? | | ??????????# # #?????#??? | | ??????????# # #????????? | | ??????????# @ # #???? ?#?? | | ?????????# d % #???????????? | | ????# #???? ??????? | | ????# ## ###???????????? | | ????# #k # ??????????? | | ????## ?# ####### ##########?????????? | | ?????## ??# ????????#??????????????????? | | ??????##???# ??????????????#????????????? | | ???????????# ????????????????#???????????? | | ???????????# ????????????????????????????? | | ???????????#???????????#?????????????????? | | ????????????????????????#????????????????? | | ??????????#????????#?????????????????????? | | ?????????????????????????????????????????? | | ?????????????????????????????????????????? | | ?????????????????????????????????????????? | | ?????????????????????????????????????????? | | ?????????????????????????????????????????? | | ?????????????????????????????????????????? | | ?????????????????????????????????????????? | | ?????????????????????????????????????????? | | ?????????????????????????????????????????? | | ?????????????????????????????????????????? | | ?????????????????????????????????????????? | | ?????????????????????????????????????????? | +----------------------------------------------------+ Best States ------------- Heat Dissipation 25 Energy Generation 14 Energy Capacity 160 Matter Stores 300 Matter Capacity 300 Sight Range 16 Terrain Scan Range 16 Terrain Scan Density 10 Evasion (%) 50 Item Schematics ----------------- None Robot Schematics ------------------ None Fabricated ------------ Nothing Alien Tech Used ----------------- None Achievements -------------- None Challenges ------------ None Game ------ Seed SalvageXenonDesublimator Manual? 0 Play Time 00:13:01 Cumulative 19.3 hours Start 2024.04.25 @ 14:00:36 End 2024.04.25 @ 14:15:43 Sessions 1 Manual Loads 0 Difficulty Rogue Special Mode None Game No. 21 Rogue 13 Adventurer 8 Explorer 0 Win Type - Total 0 Types 0/0/0/0/0/0/0/0/0 Lore% 23 Gallery% 30 Achievement% 21 Wizard Run 0 Options --------- Layout 1 ASCII 0 Keyboard 0 Movement Arrows Keybinds 0 Fullscreen 1 Font 16/SmallcapsGlow Map View 55x38 Zoom Use 0% Tactical HUD 1 Map Filters NONE Filters NONE Steam 1 RUN: 6b48531d-cb3a-4d96-b371-f78d143928ab